[Event "Hasselbacken Open 2021"]
[Site "Stockholm"]
[Date "2021.11.05"]
[Round "3.10"]
[White "Engstrom, Kaj"]
[Black "Thorn, Eric"]
[Result "0-1"]
[ECO "C56"]
[WhiteElo "2142"]
[BlackElo "2313"]
[Annotator "ChessBase"]
[PlyCount "56"]
[EventDate "2021.11.05"]
[EventType "swiss"]
[EventCountry "SWE"]
[SourceTitle "playchess.com"]
[Source "ChessBase"]
[SourceQuality "1"]
[TimeControl "900+5"]

1. e4 {[%emt 0:00:03]} e5 {[%emt 0:00:01]} 2. d4 {[%emt 0:00:07]} exd4 {
[%emt 0:00:03]} 3. Bc4 {[%emt 0:00:01]} Nf6 {[%emt 0:00:31]} 4. Nf3 {[%emt 0:
00:02]} Nc6 {[%emt 0:00:12]} 5. O-O {[%emt 0:00:43]} Nxe4 {[%emt 0:00:03]} 6.
Re1 {[%emt 0:00:05]} d5 {[%emt 0:00:01]} 7. Bxd5 {[%emt 0:00:07]} Qxd5 {
[%emt 0:00:02]} 8. Nc3 {[%emt 0:00:01]} Qh5 {[%emt 0:00:02]} 9. Nxe4 {[%emt 0:
00:15]} Be6 {[%emt 0:00:02]} 10. Bg5 {[%emt 0:01:33]} Bd6 {[%emt 0:00:03]} 11.
Nxd6+ {[%emt 0:00:30]} cxd6 {[%emt 0:00:02]} 12. Bf4 {[%emt 0:01:12]} Qd5 {
[%emt 0:00:02]} 13. c3 {[%emt 0:00:17]} Qf5 {[%emt 0:00:15]} 14. Bxd6 {[%emt 0:
02:41]} O-O-O {[%emt 0:00:08]} 15. Be5 {[%emt 0:02:21]} dxc3 {[%emt 0:01:07]}
16. Qe2 {[%emt 0:00:04]} Nxe5 {[%emt 0:02:01]} 17. Nxe5 {[%emt 0:00:06]} Rd2 {
[%emt 0:01:29]} 18. Qe3 {[%emt 0:00:01]} cxb2 {[%emt 0:00:44]} 19. Rab1 {
[%emt 0:03:59]} Qc2 {[%emt 0:01:29]} 20. Qxa7 {[%emt 0:00:26]} Rhd8 {[%emt 0:
00:10]} 21. Qa8+ {[%emt 0:00:49]} Kc7 {[%emt 0:00:02]} 22. Qa5+ {[%emt 0:00:01]
} Kb8 {[%emt 0:00:21]} 23. Nf3 {[%emt 0:00:07]} R2d5 {[%emt 0:01:24]} 24. Qb4 {
[%emt 0:00:01]} Qxb1 {[%emt 0:04:09]} 25. Rxb1 {[%emt 0:00:59]} Rd1+ {[%emt 0:
00:01]} 26. Ne1 {[%emt 0:00:07]} Rxb1 {[%emt 0:00:18]} 27. Kf1 {[%emt 0:00:29]}
Bc4+ {[%emt 0:00:08]} 28. Qxc4 {[%emt 0:00:04]} Rxe1+ {[%emt 0:00:01]} 0-1

[Event "Hasselbacken Open 2021"]
[Site "Stockholm"]
[Date "2021.11.05"]
[Round "2.5"]
[White "Akesson, Ralf"]
[Black "Krivenko, Dion"]
[Result "1/2-1/2"]
[ECO "E90"]
[WhiteElo "2385"]
[BlackElo "2032"]
[Annotator "ChessBase"]
[PlyCount "141"]
[EventDate "2021.11.05"]
[EventType "swiss"]
[EventCountry "SWE"]
[SourceTitle "playchess.com"]
[Source "ChessBase"]
[SourceQuality "1"]
[TimeControl "900+5"]

1. Nf3 {[%emt 0:00:09]} Nf6 {[%emt 0:00:11]} 2. c4 {[%emt 0:00:03]} g6 {
[%emt 0:00:00]} 3. Nc3 {[%emt 0:00:02]} Bg7 {[%emt 0:00:01]} 4. e4 {[%emt 0:00:
02]} d6 {[%emt 0:00:01]} 5. d4 {[%emt 0:00:02]} O-O {[%emt 0:00:03]} 6. h3 {
[%emt 0:00:02]} e5 {[%emt 0:00:02]} 7. d5 {[%emt 0:00:03]} Nbd7 {[%emt 0:00:02]
} 8. Be3 {[%emt 0:00:05]} Nh5 {[%emt 0:00:26]} 9. Nd2 {[%emt 0:00:14]} a5 {
[%emt 0:00:40]} 10. Qc2 {[%emt 0:00:16]} f5 {[%emt 0:00:28]} 11. f3 {[%emt 0:
02:00]} Ng3 {[%emt 0:00:39]} 12. Rg1 {[%emt 0:00:01]} fxe4 {[%emt 0:00:09]} 13.
Ndxe4 {[%emt 0:00:27]} Nf5 {[%emt 0:00:26]} 14. Bg5 {[%emt 0:00:33]} Nd4 {
[%emt 0:00:28]} 15. Qd3 {[%emt 0:00:35]} Qe8 {[%emt 0:00:46]} 16. O-O-O {
[%emt 0:00:08]} Nc5 {[%emt 0:00:21]} 17. Nxc5 {[%emt 0:00:06]} dxc5 {[%emt 0:
00:02]} 18. Qd2 {[%emt 0:00:39]} a4 {[%emt 0:00:55]} 19. Bd3 {[%emt 0:00:19]}
a3 {[%emt 0:00:44]} 20. b3 {[%emt 0:00:08]} Bd7 {[%emt 0:00:01]} 21. Rge1 {
[%emt 0:00:23]} b5 {[%emt 0:00:58]} 22. cxb5 {[%emt 0:00:20]} Nxb5 {[%emt 0:01:
41]} 23. Nxb5 {[%emt 0:00:25]} Bxb5 {[%emt 0:00:01]} 24. Bxb5 {[%emt 0:00:13]}
Qxb5 {[%emt 0:00:02]} 25. Qd3 {[%emt 0:00:05]} c4 {[%emt 0:00:52]} 26. Qxc4 {
[%emt 0:00:04]} Qxc4+ {[%emt 0:00:01]} 27. bxc4 {[%emt 0:00:02]} Ra4 {[%emt 0:
00:01]} 28. Re4 {[%emt 0:00:12]} Rb8 {[%emt 0:00:02]} 29. Rd2 {[%emt 0:01:34]}
Rab4 {[%emt 0:00:21]} 30. Rc2 {[%emt 0:00:56]} Rb1+ {[%emt 0:00:37]} 31. Kd2 {
[%emt 0:00:03]} R8b2 {[%emt 0:01:27]} 32. c5 {[%emt 0:03:13]} Rxc2+ {[%emt 0:
00:52]} 33. Kxc2 {[%emt 0:00:02]} Rb2+ {[%emt 0:00:02]} 34. Kd3 {[%emt 0:00:23]
} Rxg2 {[%emt 0:02:02]} 35. Bd2 {[%emt 0:00:47]} Kf7 {[%emt 0:00:12]} 36. Ra4 {
[%emt 0:00:23]} Rg3 {[%emt 0:00:02]} 37. Ke2 {[%emt 0:00:22]} Rg2+ {[%emt 0:00:
21]} 38. Kd1 {[%emt 0:00:07]} Rg1+ {[%emt 0:00:22]} 39. Kc2 {[%emt 0:00:10]}
Rg2 {[%emt 0:00:10]} 40. Rxa3 {[%emt 0:00:06]} Bh6 {[%emt 0:00:02]} 41. Rd3 {
[%emt 0:00:02]} Rh2 {[%emt 0:00:17]} 42. a4 {[%emt 0:00:16]} Bxd2 {[%emt 0:00:
27]} 43. Rxd2 {[%emt 0:00:01]} Rxh3 {[%emt 0:00:01]} 44. Rd3 {[%emt 0:00:14]}
Rh2+ {[%emt 0:00:10]} 45. Kb3 {[%emt 0:00:03]} Rh1 {[%emt 0:00:11]} 46. a5 {
[%emt 0:00:19]} Ra1 {[%emt 0:00:05]} 47. Kb4 {[%emt 0:00:02]} h5 {[%emt 0:00:
08]} 48. Kb5 {[%emt 0:00:07]} Ke7 {[%emt 0:00:12]} 49. Rd2 {[%emt 0:00:25]} Kd7
{[%emt 0:00:12]} 50. Rg2 {[%emt 0:00:11]} Rb1+ {[%emt 0:00:10]} 51. Ka6 {
[%emt 0:00:20]} Rc1 {[%emt 0:00:14]} 52. c6+ {[%emt 0:00:09]} Kd6 {[%emt 0:00:
23]} 53. Rxg6+ {[%emt 0:00:02]} Kxd5 {[%emt 0:00:03]} 54. Kb7 {[%emt 0:00:02]}
h4 {[%emt 0:00:07]} 55. Kxc7 {[%emt 0:00:11]} h3 {[%emt 0:00:01]} 56. Rd6+ {
[%emt 0:00:06]} Kc5 {[%emt 0:00:04]} 57. Rh6 {[%emt 0:00:02]} Kb5 {[%emt 0:00:
04]} 58. Kb7 {[%emt 0:00:29]} Kxa5 {[%emt 0:00:22]} 59. Rxh3 {[%emt 0:00:10]}
Rb1+ {[%emt 0:00:03]} 60. Kc7 {[%emt 0:00:04]} Rb3 {[%emt 0:00:10]} 61. Rh5 {
[%emt 0:00:34]} Rxf3 {[%emt 0:00:01]} 62. Rxe5+ {[%emt 0:00:04]} Ka6 {[%emt 0:
00:01]} 63. Re7 {[%emt 0:00:17]} Rc3 {[%emt 0:00:12]} 64. Re4 {[%emt 0:00:09]}
Rf3 {[%emt 0:00:05]} 65. Re7 {[%emt 0:00:19]} Rc3 {[%emt 0:00:01]} 66. Kd7 {
[%emt 0:00:06]} Kb6 {[%emt 0:00:03]} 67. Re6 {[%emt 0:00:01]} Rc1 {[%emt 0:00:
12]} 68. Rd6 {[%emt 0:00:09]} Rc2 {[%emt 0:00:01]} 69. Rd4 {[%emt 0:00:04]}
Rxc6 {[%emt 0:00:04]} 70. Rb4+ {[%emt 0:00:02]} Kc5 {[%emt 0:00:01]} 71. Rc4+ {
[%emt 0:00:02]} 1/2-1/2

[Event "Hasselbacken Open 2021"]
[Site "Stockholm"]
[Date "2021.11.05"]
[Round "2.6"]
[White "Petersson, Kjell"]
[Black "Lindberg, Bengt"]
[Result "0-1"]
[ECO "D02"]
[WhiteElo "2025"]
[BlackElo "2378"]
[Annotator "ChessBase"]
[PlyCount "45"]
[EventDate "2021.11.05"]
[EventType "swiss"]
[EventCountry "SWE"]
[SourceTitle "playchess.com"]
[Source "ChessBase"]
[SourceQuality "1"]
[TimeControl "900+5"]

1. d4 {[%emt 0:00:05]} Nf6 {[%emt 0:00:05]} 2. Bf4 {[%emt 0:00:03]} e6 {
[%emt 0:00:05]} 3. e3 {[%emt 0:00:05]} d5 {[%emt 0:00:10]} 4. Nd2 {[%emt 0:00:
09]} c5 {[%emt 0:00:00]} 5. c3 {[%emt 0:00:02]} Bd6 {[%emt 0:00:08]} 6. Bg3 {
[%emt 0:00:05]} Qc7 {[%emt 0:00:05]} 7. Ngf3 {[%emt 0:00:20]} Nbd7 {[%emt 0:00:
03]} 8. Bd3 {[%emt 0:02:07]} O-O {[%emt 0:00:05]} 9. Bxd6 {[%emt 0:01:09]} Qxd6
{[%emt 0:00:04]} 10. O-O {[%emt 0:00:14]} e5 {[%emt 0:00:34]} 11. dxe5 {
[%emt 0:00:13]} Nxe5 {[%emt 0:00:02]} 12. Nxe5 {[%emt 0:00:03]} Qxe5 {[%emt 0:
00:03]} 13. Nf3 {[%emt 0:00:02]} Qc7 {[%emt 0:00:04]} 14. h3 {[%emt 0:00:39]}
b6 {[%emt 0:00:16]} 15. Qa4 {[%emt 0:01:30]} h6 {[%emt 0:00:43]} 16. Qh4 {
[%emt 0:00:58]} Re8 {[%emt 0:00:29]} 17. g4 {[%emt 0:02:17]} Bb7 {[%emt 0:00:
37]} 18. g5 {[%emt 0:00:19]} hxg5 19. Nxg5 {[%emt 0:00:23]} g6 {[%emt 0:04:10]}
20. Qh6 {[%emt 0:00:41]} Re5 {[%emt 0:00:18]} 21. h4 {[%emt 0:00:41]} Qe7 {
[%emt 0:01:01]} 22. Kh2 {[%emt 0:01:17]} Ng4+ {[%emt 0:07:53]} 23. Kg1 {
[%emt 0:03:38]} 0-1

[Event "Hasselbacken Open 2021"]
[Site "Stockholm"]
[Date "2021.11.05"]
[Round "2.7"]
[White "Sorensen, Hampus"]
[Black "Troberg Eskola, Love"]
[Result "1-0"]
[ECO "D25"]
[WhiteElo "2377"]
[BlackElo "2026"]
[Annotator "ChessBase"]
[PlyCount "39"]
[EventDate "2021.11.05"]
[EventType "swiss"]
[EventCountry "SWE"]
[SourceTitle "playchess.com"]
[Source "ChessBase"]
[SourceQuality "1"]
[TimeControl "900+5"]

1. d4 {[%emt 0:15:10]} d5 {[%emt 0:15:10]} 2. c4 {[%emt 0:00:05]} dxc4 3. Nf3 {
[%emt 0:00:05]} Nf6 {[%emt 0:00:10]} 4. e3 {[%emt 0:00:05]} b5 {[%emt 0:00:05]}
5. a4 {[%emt 0:00:05]} b4 {[%emt 0:00:05]} 6. Bxc4 {[%emt 0:00:05]} e6 7. O-O {
[%emt 0:00:05]} Bb7 8. b3 {[%emt 0:00:05]} Nbd7 {[%emt 0:00:15]} 9. Bb2 {
[%emt 0:00:05]} c5 10. Nbd2 {[%emt 0:00:05]} Be7 {[%emt 0:00:10]} 11. dxc5 {
[%emt 0:00:05]} Qc7 {[%emt 0:00:05]} 12. Rc1 {[%emt 0:00:05]} Bxc5 {[%emt 0:00:
05]} 13. Bxf6 {[%emt 0:00:05]} gxf6 {[%emt 0:00:05]} 14. Bb5 {[%emt 0:00:05]}
Rc8 {[%emt 0:00:05]} 15. Rxc5 {[%emt 0:00:05]} Qxc5 {[%emt 0:00:05]} 16. Bxd7+
{[%emt 0:00:05]} Ke7 {[%emt 0:00:05]} 17. Bxc8 {[%emt 0:00:05]} Rxc8 {[%emt 0:
00:05]} 18. Qe2 {[%emt 0:00:05]} a6 {[%emt 0:00:05]} 19. Qc4 {[%emt 0:00:05]}
Qh5 {[%emt 0:00:05]} 20. Qxb4+ {[%emt 0:00:05]} 1-0

[Event "Hasselbacken Open 2021"]
[Site "Stockholm"]
[Date "2021.11.05"]
[Round "2.8"]
[White "Jiretorn, Eva"]
[Black "Lindgren, Philip"]
[Result "0-1"]
[ECO "E01"]
[WhiteElo "2014"]
[BlackElo "2357"]
[Annotator "ChessBase"]
[PlyCount "48"]
[EventDate "2021.11.05"]
[EventType "swiss"]
[EventCountry "SWE"]
[SourceTitle "playchess.com"]
[Source "ChessBase"]
[SourceQuality "1"]
[TimeControl "900+5"]

1. d4 {[%emt 0:00:03]} Nf6 {[%emt 0:00:07]} 2. c4 {[%emt 0:00:01]} e6 {[%emt 0:
00:02]} 3. Nf3 {[%emt 0:00:01]} d5 {[%emt 0:00:05]} 4. g3 {[%emt 0:00:02]} Bb4+
{[%emt 0:00:21]} 5. Bd2 {[%emt 0:00:05]} Bd6 {[%emt 0:00:04]} 6. Nc3 {[%emt 0:
00:15]} c6 {[%emt 0:00:20]} 7. Bg2 {[%emt 0:00:38]} Nbd7 {[%emt 0:00:12]} 8.
O-O {[%emt 0:00:08]} dxc4 {[%emt 0:00:35]} 9. e4 {[%emt 0:00:17]} e5 {[%emt 0:
00:06]} 10. a4 {[%emt 0:00:51]} O-O {[%emt 0:00:39]} 11. Qe2 {[%emt 0:00:37]}
exd4 {[%emt 0:00:15]} 12. Nxd4 {[%emt 0:00:12]} Ne5 {[%emt 0:00:05]} 13. Kh1 {
[%emt 0:00:43]} Bc5 {[%emt 0:00:34]} 14. Nf3 {[%emt 0:01:49]} Bg4 {[%emt 0:03:
04]} 15. Be3 {[%emt 0:02:01]} Bxe3 16. Qxe3 {[%emt 0:00:10]} Bxf3 {[%emt 0:02:
33]} 17. Bxf3 {[%emt 0:00:10]} Nxf3 {[%emt 0:00:03]} 18. Qxf3 {[%emt 0:00:02]}
Re8 {[%emt 0:00:04]} 19. Rfd1 {[%emt 0:01:45]} Qb6 {[%emt 0:00:15]} 20. Rd2 {
[%emt 0:00:15]} Qc5 {[%emt 0:00:12]} 21. Qe2 {[%emt 0:01:56]} h6 {[%emt 0:00:
48]} 22. f3 {[%emt 0:00:02]} Rad8 {[%emt 0:00:58]} 23. Rad1 {[%emt 0:00:06]}
Rxd2 {[%emt 0:00:07]} 24. Qxd2 {[%emt 0:00:09]} b5 {[%emt 0:01:00]} 0-1

[Event "Hasselbacken Open 2021"]
[Site "Stockholm"]
[Date "2021.11.05"]
[Round "2.9"]
[White "Kucuksari, Kaan"]
[Black "Lacko, Pavel"]
[Result "1-0"]
[ECO "E00"]
[WhiteElo "2331"]
[BlackElo "2022"]
[Annotator "broadcasts"]
[PlyCount "47"]
[EventDate "2021.11.05"]
[EventType "swiss"]
[EventCountry "SWE"]
[TimeControl "900+5"]

1. d4 {[%emt 0:00:02]} Nf6 {[%emt 0:00:05]} 2. c4 {[%emt 0:00:04]} e6 {[%emt 0:
00:03]} 3. g3 {[%emt 0:00:02]} Bb4+ {[%emt 0:00:07]} 4. Bd2 {[%emt 0:00:02]}
Qe7 {[%emt 0:00:06]} 5. Bg2 {[%emt 0:00:03]} a5 {[%emt 0:00:10]} 6. e4 {
[%emt 0:00:20]} Nc6 {[%emt 0:00:14]} 7. Ne2 {[%emt 0:00:07]} O-O {[%emt 0:00:
15]} 8. O-O {[%emt 0:00:12]} d6 {[%emt 0:00:19]} 9. Bg5 {[%emt 0:00:12]} a4 {
[%emt 0:00:34]} 10. a3 {[%emt 0:00:15]} Ba5 {[%emt 0:00:11]} 11. e5 {[%emt 0:
00:06]} dxe5 {[%emt 0:00:19]} 12. Bxc6 {[%emt 0:00:03]} bxc6 {[%emt 0:01:30]}
13. dxe5 {[%emt 0:00:03]} Qc5 {[%emt 0:00:03]} 14. Bxf6 {[%emt 0:00:38]} gxf6 {
[%emt 0:00:04]} 15. exf6 {[%emt 0:00:01]} Qe5 {[%emt 0:00:57]} 16. Nbc3 {
[%emt 0:01:14]} Bxc3 {[%emt 0:00:50]} 17. Nxc3 {[%emt 0:00:03]} Qxf6 {[%emt 0:
00:03]} 18. Nxa4 {[%emt 0:00:22]} Rxa4 {[%emt 0:00:50]} 19. Qxa4 {[%emt 0:00:
04]} e5 {[%emt 0:00:02]} 20. c5 {[%emt 0:00:31]} Bh3 {[%emt 0:05:28]} 21. Rfe1
{[%emt 0:00:05]} Rd8 {[%emt 0:00:36]} 22. Qh4 {[%emt 0:00:05]} Qxh4 {[%emt 0:
00:14]} 23. gxh4 {[%emt 0:00:02]} Rd2 {[%emt 0:00:25]} 24. a4 {[%emt 0:00:05]}
1-0

[Event "Hasselbacken Open 2021"]
[Site "Stockholm"]
[Date "2021.11.05"]
[Round "2.10"]
[White "Moborn, Anders"]
[Black "Bellon Lopez, Juan Manuel"]
[Result "0-1"]
[ECO "A58"]
[WhiteElo "1993"]
[BlackElo "2326"]
[Annotator "ChessBase"]
[PlyCount "68"]
[EventDate "2021.11.05"]
[EventType "swiss"]
[EventCountry "SWE"]
[SourceTitle "playchess.com"]
[Source "ChessBase"]
[SourceQuality "1"]
[TimeControl "900+5"]

1. d4 {[%emt 0:00:06]} Nf6 {[%emt 0:00:01]} 2. c4 {[%emt 0:00:07]} a6 {[%emt 0:
00:01]} 3. Nc3 {[%emt 0:00:14]} c5 {[%emt 0:00:01]} 4. d5 {[%emt 0:00:08]} b5 {
[%emt 0:00:02]} 5. cxb5 {[%emt 0:00:26]} Qa5 {[%emt 0:00:01]} 6. bxa6 {[%emt 0:
01:01]} Bxa6 {[%emt 0:00:05]} 7. e3 {[%emt 0:00:19]} Bxf1 {[%emt 0:00:15]} 8.
Kxf1 {[%emt 0:00:02]} g6 {[%emt 0:00:06]} 9. g3 {[%emt 0:00:27]} Bg7 {[%emt 0:
00:04]} 10. h3 {[%emt 0:00:10]} d6 {[%emt 0:00:06]} 11. Nf3 {[%emt 0:00:05]}
O-O {[%emt 0:00:12]} 12. Kg2 {[%emt 0:13:00]} Nbd7 13. Re1 {[%emt 0:00:00]}
Rfb8 {[%emt 0:00:03]} 14. Re2 {[%emt 0:00:00]} Ne8 {[%emt 0:00:01]} 15. e4 {
[%emt 0:00:00]} Bxc3 {[%emt 0:00:59]} 16. bxc3 {[%emt 0:00:00]} Qxc3 {[%emt 0:
00:07]} 17. Bg5 {[%emt 0:00:00]} f6 {[%emt 0:00:04]} 18. Be3 {[%emt 0:00:00]}
Ra3 {[%emt 0:01:24]} 19. Qc1 {[%emt 0:00:00]} Qxc1 {[%emt 0:00:33]} 20. Rxc1 {
[%emt 0:00:00]} Rb4 {[%emt 0:00:28]} 21. Bh6 {[%emt 0:00:00]} Kf7 {[%emt 0:01:
15]} 22. Rcc2 {[%emt 0:00:00]} Raa4 {[%emt 0:00:29]} 23. Nd2 {[%emt 0:00:00]}
g5 {[%emt 0:00:03]} 24. h4 {[%emt 0:00:00]} Kg6 {[%emt 0:00:01]} 25. hxg5 {
[%emt 0:00:00]} fxg5 {[%emt 0:00:01]} 26. Bxg5 {[%emt 0:00:00]} Kxg5 {[%emt 0:
00:02]} 27. f4+ {[%emt 0:00:00]} Kf6 {[%emt 0:02:05]} 28. g4 {[%emt 0:00:00]}
e5 {[%emt 0:00:33]} 29. g5+ {[%emt 0:00:00]} Kg6 {[%emt 0:00:07]} 30. f5+ {
[%emt 0:00:00]} Kxg5 {[%emt 0:00:09]} 31. Re3 {[%emt 0:00:00]} Ndf6 {[%emt 0:
01:01]} 32. Rg3+ {[%emt 0:00:00]} Ng4 {[%emt 0:00:35]} 33. Kh3 {[%emt 0:00:00]}
h5 {[%emt 0:00:18]} 34. Nf3+ {[%emt 0:00:16]} Kh6 {[%emt 0:00:03]} 0-1

[Event "Hasselbacken Open 2021"]
[Site "Stockholm"]
[Date "2021.11.05"]
[Round "1.6"]
[White "Lindberg, Bengt"]
[Black "Sparv, Joakim"]
[Result "1-0"]
[ECO "B90"]
[WhiteElo "2378"]
[BlackElo "1846"]
[Annotator "ChessBase"]
[PlyCount "105"]
[EventDate "2021.11.05"]
[EventType "swiss"]
[EventCountry "SWE"]
[SourceTitle "playchess.com"]
[Source "ChessBase"]
[SourceQuality "1"]
[TimeControl "900+5"]

1. e4 {[%emt 0:00:03]} c5 {[%emt 0:00:05]} 2. Nf3 {[%emt 0:00:02]} d6 {[%emt 0:
00:06]} 3. d4 {[%emt 0:00:04]} cxd4 {[%emt 0:00:04]} 4. Nxd4 {[%emt 0:00:04]}
Nf6 {[%emt 0:00:07]} 5. Nc3 {[%emt 0:00:03]} a6 {[%emt 0:00:06]} 6. Be3 {
[%emt 0:00:04]} e5 {[%emt 0:00:09]} 7. Nb3 {[%emt 0:00:03]} Be6 {[%emt 0:00:10]
} 8. f3 {[%emt 0:00:04]} Be7 {[%emt 0:00:16]} 9. Qd2 {[%emt 0:00:04]} O-O {
[%emt 0:00:06]} 10. O-O-O {[%emt 0:00:05]} b5 {[%emt 0:00:49]} 11. g4 {[%emt 0:
00:13]} b4 {[%emt 0:00:15]} 12. Nd5 {[%emt 0:00:12]} Bxd5 {[%emt 0:00:11]} 13.
exd5 {[%emt 0:00:03]} Qc7 {[%emt 0:00:26]} 14. g5 {[%emt 0:01:03]} Nfd7 {
[%emt 0:01:05]} 15. Qxb4 {[%emt 0:02:47]} Rc8 {[%emt 0:00:54]} 16. Bd3 {
[%emt 0:00:11]} a5 {[%emt 0:00:06]} 17. Qa4 {[%emt 0:01:14]} Nb6 {[%emt 0:02:
03]} 18. Qe4 {[%emt 0:00:54]} g6 {[%emt 0:00:09]} 19. a4 {[%emt 0:00:36]} Nc4 {
[%emt 0:01:48]} 20. h4 {[%emt 0:01:38]} Na6 {[%emt 0:00:53]} 21. Bxc4 {[%emt 0:
01:41]} Qxc4 {[%emt 0:00:07]} 22. Qxc4 {[%emt 0:00:03]} Rxc4 {[%emt 0:00:02]}
23. Nxa5 {[%emt 0:00:09]} Rxa4 {[%emt 0:01:00]} 24. Nc6 {[%emt 0:00:02]} Bf8 {
[%emt 0:01:00]} 25. c3 {[%emt 0:00:05]} Nb8 {[%emt 0:00:57]} 26. Nb4 {[%emt 0:
00:57]} h5 {[%emt 0:00:37]} 27. Kc2 {[%emt 0:00:42]} Nd7 {[%emt 0:00:58]} 28.
Rb1 {[%emt 0:00:51]} f5 {[%emt 0:00:19]} 29. b3 {[%emt 0:00:21]} R4a5 {[%emt 0:
00:09]} 30. Rhd1 {[%emt 0:00:05]} f4 {[%emt 0:01:22]} 31. Bg1 {[%emt 0:00:20]}
Nc5 {[%emt 0:00:02]} 32. Bxc5 {[%emt 0:00:12]} Rxc5 {[%emt 0:00:02]} 33. c4 {
[%emt 0:00:14]} Rca5 {[%emt 0:00:26]} 34. Nc6 {[%emt 0:00:21]} Ra3 {[%emt 0:00:
08]} 35. Rd3 {[%emt 0:00:27]} Kf7 {[%emt 0:00:01]} 36. b4 {[%emt 0:00:23]} R3a4
{[%emt 0:00:01]} 37. Rdb3 {[%emt 0:00:16]} Be7 {[%emt 0:00:02]} 38. Kd3 {
[%emt 0:00:10]} Ra2 {[%emt 0:01:14]} 39. R1b2 {[%emt 0:00:06]} Ra1 {[%emt 0:00:
00]} 40. c5 {[%emt 0:00:29]} Rh1 {[%emt 0:00:00]} 41. b5 {[%emt 0:00:24]} Rxh4
{[%emt 0:00:00]} 42. b6 {[%emt 0:00:06]} Rh3 {[%emt 0:00:11]} 43. b7 {[%emt 0:
00:09]} Rxf3+ {[%emt 0:00:01]} 44. Ke2 {[%emt 0:00:07]} Rxb3 {[%emt 0:00:01]}
45. Rxb3 {[%emt 0:00:01]} Rh8 {[%emt 0:00:05]} 46. b8=Q {[%emt 0:00:11]} Rxb8 {
[%emt 0:00:01]} 47. Rxb8 {[%emt 0:00:01]} Bxg5 {[%emt 0:00:01]} 48. cxd6 {
[%emt 0:00:09]} e4 {[%emt 0:00:02]} 49. d7 {[%emt 0:00:16]} f3+ {[%emt 0:00:01]
} 50. Kf2 {[%emt 0:00:16]} Bh4+ {[%emt 0:00:01]} 51. Ke3 {[%emt 0:00:02]} f2 {
[%emt 0:00:01]} 52. Rb1 {[%emt 0:00:03]} g5 {[%emt 0:00:04]} 53. d8=Q {[%emt 0:
00:03]} 1-0

[Event "Hasselbacken Open 2021"]
[Site "Stockholm"]
[Date "2021.11.05"]
[Round "1.7"]
[White "Ranby, Hans"]
[Black "Sorensen, Hampus"]
[Result "0-1"]
[ECO "A12"]
[WhiteElo "1838"]
[BlackElo "2377"]
[Annotator "ChessBase"]
[PlyCount "81"]
[EventDate "2021.11.05"]
[EventType "swiss"]
[EventCountry "SWE"]
[SourceTitle "playchess.com"]
[Source "ChessBase"]
[SourceQuality "1"]
[TimeControl "900+5"]

1. Nf3 {[%emt 0:00:00]} d5 {[%emt 0:00:00]} 2. e3 {[%emt 0:00:00]} Nf6 {
[%emt 0:15:15]} 3. c4 {[%emt 0:15:20]} c6 {[%emt 0:00:05]} 4. b3 {[%emt 0:00:
05]} Bg4 {[%emt 0:00:05]} 5. Bb2 {[%emt 0:00:05]} e6 {[%emt 0:00:05]} 6. Be2 {
[%emt 0:00:05]} Nbd7 {[%emt 0:00:05]} 7. Nc3 {[%emt 0:00:05]} Bd6 {[%emt 0:00:
05]} 8. O-O {[%emt 0:00:05]} O-O {[%emt 0:00:05]} 9. d4 {[%emt 0:00:05]} Re8 {
[%emt 0:00:05]} 10. Qc2 {[%emt 0:00:05]} a6 {[%emt 0:00:05]} 11. Rac1 {[%emt 0:
00:05]} Rc8 {[%emt 0:00:05]} 12. Qb1 {[%emt 0:00:05]} Qe7 {[%emt 0:00:05]} 13.
Rfd1 {[%emt 0:00:05]} dxc4 {[%emt 0:00:05]} 14. bxc4 {[%emt 0:00:05]} e5 {
[%emt 0:00:05]} 15. d5 {[%emt 0:00:05]} e4 {[%emt 0:00:05]} 16. Nd4 {[%emt 0:
00:05]} c5 {[%emt 0:00:05]} 17. Nb3 {[%emt 0:00:05]} Qe5 {[%emt 0:00:05]} 18.
g3 {[%emt 0:00:05]} Bxe2 {[%emt 0:00:05]} 19. Nxe2 {[%emt 0:00:05]} Qh5 {
[%emt 0:00:05]} 20. Nf4 {[%emt 0:00:05]} Bxf4 {[%emt 0:00:05]} 21. exf4 {
[%emt 0:00:05]} Ng4 {[%emt 0:00:05]} 22. h4 {[%emt 0:00:05]} e3 {[%emt 0:00:05]
} 23. f3 {[%emt 0:00:05]} Nf2 {[%emt 0:00:05]} 24. Kg2 {[%emt 0:00:05]} Nxd1 {
[%emt 0:00:05]} 25. Rxd1 {[%emt 0:00:05]} b5 {[%emt 0:00:05]} 26. Qc1 {[%emt 0:
00:05]} e2 {[%emt 0:00:05]} 27. Qc3 {[%emt 0:00:05]} Qg6 {[%emt 0:00:05]} 28.
Re1 {[%emt 0:00:05]} bxc4 {[%emt 0:00:05]} 29. Qxc4 {[%emt 0:00:05]} Nb6 {
[%emt 0:00:05]} 30. Qxa6 {[%emt 0:00:05]} Nxd5 {[%emt 0:00:05]} 31. Qxg6 {
[%emt 0:00:05]} hxg6 {[%emt 0:00:05]} 32. Nc1 {[%emt 0:00:05]} Rb8 {[%emt 0:00:
05]} 33. Ba3 {[%emt 0:00:05]} Ne3+ {[%emt 0:00:05]} 34. Kf2 {[%emt 0:00:05]}
Nc2 {[%emt 0:00:05]} 35. Bxc5 {[%emt 0:00:05]} Nxe1 {[%emt 0:00:05]} 36. Kxe1 {
[%emt 0:00:05]} Rb1 {[%emt 0:00:05]} 37. Ba3 {[%emt 0:00:05]} Ra8 {[%emt 0:00:
05]} 38. Bd6 {[%emt 0:00:05]} Rxc1+ {[%emt 0:00:05]} 39. Kxe2 {[%emt 0:00:05]}
Rxa2+ {[%emt 0:00:05]} 40. Ke3 {[%emt 0:00:05]} Re1+ {[%emt 0:00:05]} 41. Kd4 {
[%emt 0:00:05]} 0-1